[Event "White Rook U14 Final 2019"]
[Site "Sochi"]
[Date "2019.06.06"]
[Round "1.28"]
[White "Gutsulyak, Alisa"]
[Black "Namay, Viktoria"]
[Result "1/2-1/2"]
[ECO "B10"]
[WhiteElo "1248"]
[BlackElo "1359"]
[Annotator "NA RC"]
[PlyCount "95"]
[EventDate "2019.06.02"]
[EventCountry "RUS"]
[SourceTitle "playchess.com"]
[Source "ChessBase"]
[SourceQuality "1"]
[TimeControl "5400+30"]

1. e4 {[%emt 0:00:00]} c6 {[%emt 0:01:26]} 2. Bc4 {[%emt 0:00:07]} d5 {[%emt 0:00:14]} 3. Bb3 {[%emt 0:00:03]} dxe4 {[%emt 0:00:25]} 4. Qh5 {[%emt 0:00:11]} e6 {[%emt 0:00:38]} 5. Nc3 {[%emt 0:00:11]} Nf6 {[%emt 0:00:11]} 6. Qh4 {[%emt 0:00:16]} Be7 {[%emt 0:00:55]} 7. Nxe4 {[%emt 0:00:16]} Nbd7 {[%emt 0:00:08]} 8. d3 {[%emt 0:02:03]} b6 {[%emt 0:02:05]} 9. Ne2 {[%emt 0:05:23]} Bb7 {[%emt 0:00:57]} 10. N2c3 {[%emt 0:01:11]} c5 {[%emt 0:01:23]} 11. Qg3 {[%emt 0:03:11]} Nxe4 {[%emt 0:06:03]} 12. Nxe4 {[%emt 0:00:12]} Bxe4 {[%emt 0:03:48]} 13. dxe4 {[%emt 0:00:11]} Bf6 {[%emt 0:00:20]} 14. c3 {[%emt 0:03:38]} Rc8 {[%emt 0:06:28]} 15. O-O {[%emt 0:02:35]} O-O {[%emt 0:00:30]} 16. f4 {[%emt 0:02:36]} c4 {[%emt 0:00:13]} 17. Bc2 {[%emt 0:00:14]} Bh4 {[%emt 0:03:03]} 18. Qh3 {[%emt 0:03:09]} e5 {[%emt 0:05:35]} 19. f5 {[%emt 0:02:37]} Bg5 {[%emt 0:00:11]} 20. Qg4 {[%emt 0:02:33]} Bxc1 {[%emt 0:01:00]} 21. Raxc1 {[%emt 0:00:06]} f6 {[%emt 0:00:23]} 22. Rf3 {[%emt 0:01:11]} Qe7 {[%emt 0:01:45]} 23. Rh3 {[%emt 0:01:21]} Rfd8 {[%emt 0:00:30]} 24. Qh5 {[%emt 0:01:15]} Nf8 {[%emt 0:00:51]} 25. Rd1 {[%emt 0:05:42]} Rxd1+ {[%emt 0:01:01]} 26. Bxd1 {[%emt 0:01:51]} Rd8 {[%emt 0:00:34]} 27. Qe2 {[%emt 0:04:48]} b5 {[%emt 0:03:31]} 28. Kf1 {[%emt 0:02:47]} Qd6 {[%emt 0:01:11]} 29. Ke1 {[%emt 0:01:13]} Nd7 {[%emt 0:00:37]} 30. b4 {[%emt 0:00:36]} a5 {[%emt 0:03:33]} 31. a3 {[%emt 0:18:53]} Ra8 {[%emt 0:01:31]} 32. Bc2 {[%emt 0:00:53]} axb4 {[%emt 0:05:13]} 33. cxb4 {[%emt 0:00:11]} Qd4 {[%emt 0:02:35]} 34. Qe3 {[%emt 0:00:42]} Qa1+ {[%emt 0:07:53]} 35. Kd2 {[%emt 0:00:47]} Rc8 {[%emt 0:04:32]} 36. Qc3 {[%emt 0:04:28]} Qg1 {[%emt 0:00:35]} 37. Qf3 {[%emt 0:03:01]} c3+ {[%emt 0:03:39]} 38. Ke2 {[%emt 0:02:16]} Qc1 {[%emt 0:00:40]} 39. Qd3 {[%emt 0:03:38]} Nb6 {[%emt 0:02:26]} 40. Bb3+ {[%emt 0:00:45]} Kf8 {[%emt 0:00:32]} 41. Be6 {[%emt 0:02:24]} Qb2+ {[%emt 0:05:04]} 42. Ke3 {[%emt 0:07:28]} Nc4+ {[%emt 0:02:37]} 43. Bxc4 {[%emt 0:00:25]} Rxc4 {[%emt 0:00:15]} 44. Qd8+ {[%emt 0:00:15]} Kf7 {[%emt 0:00:08]} 45. Qd7+ {[%emt 0:00:11]} Kf8 {[%emt 0:00:07]} 46. Qd8+ {[%emt 0:01:25]} Kf7 {[%emt 0:00:09]} 47. Qd7+ {[%emt 0:00:08]} Kf8 {[%emt 0:00:06]} 48. Qd8+ {[%emt 0:00:45]} 1/2-1/2

[Event "White Rook U14 Final 2019"]
[Site "Sochi"]
[Date "2019.06.06"]
[Round "1.29"]
[White "Deminov, Ilya"]
[Black "Abrazevich, Yauheni"]
[Result "1-0"]
[ECO "C67"]
[WhiteElo "1562"]
[BlackElo "1888"]
[Annotator "NA RC"]
[PlyCount "107"]
[EventDate "2019.06.02"]
[EventCountry "RUS"]
[SourceTitle "playchess.com"]
[Source "ChessBase"]
[SourceQuality "1"]
[TimeControl "5400+30"]

1. e4 {[%emt 0:00:00]} e5 {[%emt 0:00:08]} 2. Nf3 {[%emt 0:00:02]} Nc6 {[%emt 0:00:06]} 3. Bb5 {[%emt 0:00:05]} Nf6 {[%emt 0:00:03]} 4. O-O {[%emt 0:00:06]} Nxe4 {[%emt 0:00:06]} 5. d4 {[%emt 0:00:05]} Nd6 {[%emt 0:00:03]} 6. Bxc6 {[%emt 0:00:06]} dxc6 {[%emt 0:00:06]} 7. dxe5 {[%emt 0:00:03]} Nf5 {[%emt 0:00:05]} 8. Qxd8+ {[%emt 0:00:05]} Kxd8 {[%emt 0:00:06]} 9. g4 {[%emt 0:01:25]} Ne7 {[%emt 0:00:27]} 10. h3 {[%emt 0:00:08]} h5 {[%emt 0:01:06]} 11. Ng5 {[%emt 0:00:08]} Ke8 {[%emt 0:00:18]} 12. f3 {[%emt 0:00:08]} Ng6 {[%emt 0:00:16]} 13. Re1 {[%emt 0:00:41]} hxg4 {[%emt 0:02:24]} 14. hxg4 {[%emt 0:03:30]} Be7 {[%emt 0:03:18]} 15. Nc3 {[%emt 0:02:39]} Be6 {[%emt 0:02:13]} 16. Kg2 {[%emt 0:07:33]} Kd7 {[%emt 0:07:11]} 17. Rd1+ {[%emt 0:01:52]} Kc8 {[%emt 0:00:09]} 18. Nxe6 {[%emt 0:00:59]} fxe6 {[%emt 0:00:19]} 19. f4 {[%emt 0:00:55]} b6 {[%emt 0:07:19]} 20. Ne2 {[%emt 0:06:33]} Kb7 {[%emt 0:08:42]} 21. Nd4 {[%emt 0:01:52]} Rad8 {[%emt 0:00:09]} 22. Be3 {[%emt 0:00:23]} Bc5 {[%emt 0:00:15]} 23. Nxe6 {[%emt 0:00:52]} Rde8 {[%emt 0:08:14]} 24. Nxc5+ {[%emt 0:00:43]} bxc5 {[%emt 0:00:05]} 25. Rd7 {[%emt 0:00:53]} Rh4 {[%emt 0:01:02]} 26. Rxg7 {[%emt 0:12:34]} Rxg4+ {[%emt 0:05:03]} 27. Kh3 {[%emt 0:01:46]} Nxe5 {[%emt 0:12:20]} 28. Rxg4 {[%emt 0:05:45]} Nxg4 {[%emt 0:00:07]} 29. Bxc5 {[%emt 0:00:31]} Nf6 {[%emt 0:00:21]} 30. Bd4 {[%emt 0:00:39]} Nd5 {[%emt 0:01:55]} 31. Rf1 {[%emt 0:04:34]} Re4 {[%emt 0:01:58]} 32. Be5 {[%emt 0:00:20]} Re2 {[%emt 0:13:27]} 33. c4 {[%emt 0:01:49]} Re3+ {[%emt 0:02:22]} 34. Kg4 {[%emt 0:04:29]} Ne7 {[%emt 0:14:57]} 35. Bc3 {[%emt 0:02:49]} Re4 {[%emt 0:02:13]} 36. Re1 {[%emt 0:00:27]} Rxe1 {[%emt 0:00:42]} 37. Bxe1 {[%emt 0:00:07]} Kc8 {[%emt 0:01:27]} 38. f5 {[%emt 0:00:09]} Kd7 {[%emt 0:00:22]} 39. Bb4 {[%emt 0:00:14]} c5 {[%emt 0:03:47]} 40. Bxc5 {[%emt 0:00:19]} Nc6 {[%emt 0:00:01]} 41. Kf4 {[%emt 0:00:11]} a6 {[%emt 0:00:54]} 42. b4 {[%emt 0:00:29]} Nd8 {[%emt 0:01:16]} 43. Ke5 {[%emt 0:00:30]} Nf7+ {[%emt 0:02:46]} 44. Kf6 {[%emt 0:00:07]} Nd8 {[%emt 0:00:08]} 45. Kg7 {[%emt 0:00:44]} Ke8 {[%emt 0:00:15]} 46. b5 {[%emt 0:00:28]} axb5 {[%emt 0:00:42]} 47. cxb5 {[%emt 0:00:08]} Kd7 {[%emt 0:00:14]} 48. a4 {[%emt 0:00:06]} c6 {[%emt 0:00:48]} 49. b6 {[%emt 0:00:57]} Nb7 {[%emt 0:01:02]} 50. Bb4 {[%emt 0:00:11]} c5 {[%emt 0:00:34]} 51. Bc3 {[%emt 0:02:08]} Nd6 {[%emt 0:01:06]} 52. f6 {[%emt 0:00:18]} Ke6 {[%emt 0:00:33]} 53. f7 {[%emt 0:00:31]} Nf5+ {[%emt 0:00:18]} 54. Kh7 {[%emt 0:01:15]} 1-0

[Event "White Rook U14 Final 2019"]
[Site "Sochi"]
[Date "2019.06.06"]
[Round "1.32"]
[White "Zeliantsova, Kseniya"]
[Black "Deminova, Maria"]
[Result "1/2-1/2"]
[ECO "B40"]
[WhiteElo "1892"]
[BlackElo "1737"]
[Annotator "NA RC"]
[PlyCount "64"]
[EventDate "2019.06.02"]
[EventCountry "RUS"]
[SourceTitle "playchess.com"]
[Source "ChessBase"]
[SourceQuality "1"]
[TimeControl "5400+30"]

1. e4 {[%emt 0:00:00]} c5 {[%emt 0:00:05]} 2. Nf3 {[%emt 0:00:05]} e6 {[%emt 0:00:06]} 3. c4 {[%emt 0:00:02]} Nc6 {[%emt 0:00:08]} 4. Nc3 {[%emt 0:00:06]} Nge7 {[%emt 0:00:09]} 5. Be2 {[%emt 0:00:39]} b6 {[%emt 0:06:35]} 6. d4 {[%emt 0:01:24]} cxd4 {[%emt 0:00:08]} 7. Nxd4 {[%emt 0:00:04]} Nxd4 {[%emt 0:00:10]} 8. Qxd4 {[%emt 0:00:06]} Nc6 {[%emt 0:00:05]} 9. Qd1 {[%emt 0:00:13]} Bb7 {[%emt 0:01:54]} 10. O-O {[%emt 0:01:52]} Be7 {[%emt 0:02:58]} 11. Be3 {[%emt 0:01:41]} O-O {[%emt 0:01:29]} 12. f4 {[%emt 0:00:53]} d6 {[%emt 0:02:13]} 13. Qd2 {[%emt 0:01:18]} Rc8 {[%emt 0:03:03]} 14. Rad1 {[%emt 0:01:36]} Rc7 {[%emt 0:22:25]} 15. b3 {[%emt 0:10:04]} Rd7 {[%emt 0:08:23]} 16. Bf3 {[%emt 0:04:35]} Qb8 {[%emt 0:12:57]} 17. Qf2 {[%emt 0:01:15]} Rfd8 {[%emt 0:01:09]} 18. Qg3 {[%emt 0:00:59]} Bf6 {[%emt 0:02:13]} 19. Nb5 {[%emt 0:11:07]} Nb4 {[%emt 0:12:23]} 20. Nxd6 {[%emt 0:20:35]} Nc2 {[%emt 0:08:05]} 21. Bf2 {[%emt 0:03:09]} Rxd6 {[%emt 0:03:46]} 22. Rxd6 {[%emt 0:00:07]} Rxd6 {[%emt 0:00:26]} 23. e5 {[%emt 0:00:23]} Bxe5 {[%emt 0:01:45]} 24. fxe5 {[%emt 0:00:23]} Rd3 {[%emt 0:00:29]} 25. Rd1 {[%emt 0:01:14]} Qd8 {[%emt 0:04:29]} 26. Rxd3 {[%emt 0:03:47]} Qxd3 {[%emt 0:00:04]} 27. h3 {[%emt 0:00:37]} Nd4 {[%emt 0:01:57]} 28. Bxd4 {[%emt 0:08:37]} Qxd4+ {[%emt 0:00:04]} 29. Qf2 {[%emt 0:00:04]} Qa1+ {[%emt 0:00:08]} 30. Qf1 {[%emt 0:00:08]} Qd4+ {[%emt 0:03:51]} 31. Qf2 {[%emt 0:00:13]} Qa1+ {[%emt 0:00:07]} 32. Qf1 {[%emt 0:00:11]} Qd4+ {[%emt 0:00:19]} 1/2-1/2

[Event "White Rook U14 Final 2019"]
[Site "Sochi"]
[Date "2019.06.06"]
[Round "1.33"]
[White "Morozov, Gennady"]
[Black "Mescheryakov, Artem"]
[Result "1-0"]
[ECO "E73"]
[WhiteElo "1997"]
[BlackElo "1385"]
[Annotator "NA RC"]
[PlyCount "169"]
[EventDate "2019.06.02"]
[EventCountry "RUS"]
[SourceTitle "playchess.com"]
[Source "ChessBase"]
[SourceQuality "1"]
[TimeControl "5400+30"]

1. d4 {[%emt 0:00:00]} Nf6 {[%emt 0:00:13]} 2. c4 {[%emt 0:00:05]} g6 {[%emt 0:00:09]} 3. Nc3 {[%emt 0:00:03]} Bg7 {[%emt 0:00:12]} 4. e4 {[%emt 0:00:06]} d6 {[%emt 0:00:10]} 5. Be2 {[%emt 0:00:06]} O-O {[%emt 0:00:11]} 6. Bg5 {[%emt 0:00:05]} h6 {[%emt 0:00:07]} 7. Be3 {[%emt 0:00:03]} e5 {[%emt 0:01:29]} 8. d5 {[%emt 0:00:16]} Ne8 {[%emt 0:00:24]} 9. Qd2 {[%emt 0:01:00]} Kh7 {[%emt 0:00:08]} 10. g4 {[%emt 0:00:41]} f5 {[%emt 0:00:45]} 11. gxf5 {[%emt 0:00:26]} gxf5 {[%emt 0:00:06]} 12. exf5 {[%emt 0:00:05]} Bxf5 {[%emt 0:00:06]} 13. Bd3 {[%emt 0:00:38]} Qd7 {[%emt 0:03:45]} 14. Nge2 {[%emt 0:02:16]} Bxd3 {[%emt 0:00:52]} 15. Qxd3+ {[%emt 0:00:06]} Qf5 {[%emt 0:00:07]} 16. Qxf5+ {[%emt 0:00:10]} Rxf5 {[%emt 0:00:09]} 17. Ng3 {[%emt 0:00:10]} Rf7 {[%emt 0:00:17]} 18. Rg1 {[%emt 0:01:21]} Nd7 {[%emt 0:01:28]} 19. Ke2 {[%emt 0:01:16]} Ndf6 {[%emt 0:00:47]} 20. f3 {[%emt 0:02:00]} a6 {[%emt 0:01:07]} 21. b4 {[%emt 0:02:19]} b5 {[%emt 0:01:05]} 22. cxb5 {[%emt 0:07:05]} axb5 {[%emt 0:00:08]} 23. Rgd1 {[%emt 0:01:29]} Nd7 {[%emt 0:02:22]} 24. Nge4 {[%emt 0:02:17]} Rb8 {[%emt 0:00:45]} 25. a3 {[%emt 0:02:36]} Nef6 {[%emt 0:00:32]} 26. Rac1 {[%emt 0:01:45]} Nxe4 {[%emt 0:00:19]} 27. fxe4 {[%emt 0:03:54]} Nf6 {[%emt 0:02:01]} 28. Rf1 {[%emt 0:01:46]} Re7 {[%emt 0:02:04]} 29. Kd3 {[%emt 0:01:44]} Ng4 {[%emt 0:01:11]} 30. Bg1 {[%emt 0:00:37]} h5 {[%emt 0:01:09]} 31. h3 {[%emt 0:00:14]} Nh6 {[%emt 0:00:09]} 32. Nb1 {[%emt 0:01:18]} Nf7 {[%emt 0:00:20]} 33. Rc6 {[%emt 0:01:11]} Ra8 {[%emt 0:00:38]} 34. Rfc1 {[%emt 0:00:27]} Ng5 {[%emt 0:00:54]} 35. h4 {[%emt 0:02:29]} Nf3 {[%emt 0:04:27]} 36. Bf2 {[%emt 0:06:45]} Rb8 {[%emt 0:19:06]} 37. Rxc7 {[%emt 0:00:37]} Rxc7 {[%emt 0:00:25]} 38. Rxc7 {[%emt 0:00:08]} Kg6 {[%emt 0:00:05]} 39. Rc6 {[%emt 0:00:26]} Bf8 {[%emt 0:00:13]} 40. Nc3 {[%emt 0:01:17]} Be7 {[%emt 0:00:21]} 41. Bc5 {[%emt 0:01:57]} Bxh4 {[%emt 0:05:28]} 42. Bxd6 {[%emt 0:00:24]} Ra8 {[%emt 0:00:05]} 43. Be7+ {[%emt 0:00:54]} Kf7 {[%emt 0:00:12]} 44. Bxh4 {[%emt 0:00:07]} Nxh4 {[%emt 0:00:07]} 45. Nxb5 {[%emt 0:00:41]} Ng6 {[%emt 0:02:05]} 46. Ke3 {[%emt 0:01:12]} h4 {[%emt 0:00:44]} 47. Rc2 {[%emt 0:00:42]} h3 {[%emt 0:00:24]} 48. Kf3 {[%emt 0:00:34]} Rg8 {[%emt 0:00:31]} 49. Kg3 {[%emt 0:00:52]} Nf4+ {[%emt 0:00:07]} 50. Kh2 {[%emt 0:00:05]} Kg6 {[%emt 0:02:13]} 51. a4 {[%emt 0:01:08]} Kh5 {[%emt 0:00:04]} 52. a5 {[%emt 0:00:37]} Kh4 {[%emt 0:00:44]} 53. Nd6 {[%emt 0:01:22]} Kg4 {[%emt 0:00:35]} 54. Rc3 {[%emt 0:01:09]} Ne2 {[%emt 0:00:38]} 55. Re3 {[%emt 0:00:34]} Rg6 {[%emt 0:01:11]} 56. Rxe2 {[%emt 0:01:30]} Rxd6 {[%emt 0:00:07]} 57. Ra2 {[%emt 0:00:13]} Kf4 {[%emt 0:00:25]} 58. a6 {[%emt 0:00:10]} Rd8 {[%emt 0:00:05]} 59. a7 {[%emt 0:00:05]} Kxe4 {[%emt 0:02:10]} 60. a8=Q {[%emt 0:00:11]} Rxa8 {[%emt 0:00:08]} 61. Rxa8 {[%emt 0:00:05]} Kxd5 {[%emt 0:01:09]} 62. Rc8 {[%emt 0:00:07]} e4 {[%emt 0:00:07]} 63. b5 {[%emt 0:00:11]} e3 {[%emt 0:00:05]} 64. b6 {[%emt 0:00:04]} e2 {[%emt 0:00:05]} 65. Re8 {[%emt 0:00:04]} Kc6 {[%emt 0:00:09]} 66. Rxe2 {[%emt 0:00:08]} Kxb6 {[%emt 0:00:05]} 67. Rc2 {[%emt 0:00:06]} Kb5 {[%emt 0:00:16]} 68. Kxh3 {[%emt 0:00:06]} Kb4 {[%emt 0:00:04]} 69. Kg3 {[%emt 0:00:07]} Kb3 {[%emt 0:00:09]} 70. Rc8 {[%emt 0:00:05]} Kb4 {[%emt 0:00:10]} 71. Kf4 {[%emt 0:00:04]} Kb5 {[%emt 0:00:11]} 72. Ke5 {[%emt 0:00:09]} Kb6 {[%emt 0:00:22]} 73. Kd5 {[%emt 0:00:24]} Kb7 {[%emt 0:00:10]} 74. Rc2 {[%emt 0:00:11]} Kb6 {[%emt 0:00:05]} 75. Rc1 {[%emt 0:00:04]} Kb7 {[%emt 0:00:04]} 76. Kd6 {[%emt 0:00:04]} Kb8 {[%emt 0:00:07]} 77. Kd7 {[%emt 0:00:05]} Kb7 {[%emt 0:00:10]} 78. Rb1+ {[%emt 0:00:04]} Ka6 {[%emt 0:00:05]} 79. Kc6 {[%emt 0:00:06]} Ka5 {[%emt 0:00:09]} 80. Rb8 {[%emt 0:00:11]} Ka4 {[%emt 0:00:10]} 81. Kc5 {[%emt 0:00:02]} Ka3 {[%emt 0:00:09]} 82. Kc4 {[%emt 0:00:04]} Ka2 {[%emt 0:00:04]} 83. Kc3 {[%emt 0:00:05]} Ka1 {[%emt 0:00:04]} 84. Kc2 {[%emt 0:00:11]} Ka2 {[%emt 0:00:07]} 85. Ra8# {[%emt 0:00:02]} 1-0

[Event "White Rook U14 Final 2019"]
[Site "Sochi"]
[Date "2019.06.06"]
[Round "1.34"]
[White "Zubtsov, Vladimir"]
[Black "Ermakov, Maksim"]
[Result "1-0"]
[ECO "B40"]
[WhiteElo "1404"]
[BlackElo "1623"]
[Annotator "NA RC"]
[PlyCount "57"]
[EventDate "2019.06.02"]
[EventCountry "RUS"]
[SourceTitle "playchess.com"]
[Source "ChessBase"]
[SourceQuality "1"]
[TimeControl "5400+30"]

1. e4 {[%emt 0:00:00]} c5 {[%emt 0:00:08]} 2. Nf3 {[%emt 0:00:09]} e6 {[%emt 0:00:15]} 3. c3 {[%emt 0:00:21]} Nf6 {[%emt 0:00:08]} 4. Qc2 {[%emt 0:02:06]} d5 {[%emt 0:00:46]} 5. exd5 {[%emt 0:00:43]} Nxd5 {[%emt 0:00:30]} 6. d4 {[%emt 0:01:47]} Nc6 {[%emt 0:00:35]} 7. Bb5 {[%emt 0:06:42]} Bd7 {[%emt 0:01:33]} 8. Bxc6 {[%emt 0:06:22]} Bxc6 {[%emt 0:00:08]} 9. O-O {[%emt 0:00:16]} Be7 {[%emt 0:01:08]} 10. Ne5 {[%emt 0:07:27]} Rc8 {[%emt 0:00:59]} 11. Nxc6 {[%emt 0:04:41]} Rxc6 {[%emt 0:00:34]} 12. dxc5 {[%emt 0:06:14]} Bxc5 {[%emt 0:00:24]} 13. Nd2 {[%emt 0:03:55]} O-O {[%emt 0:00:36]} 14. Nf3 {[%emt 0:01:39]} Be7 {[%emt 0:03:21]} 15. Qe2 {[%emt 0:04:04]} Bf6 {[%emt 0:02:18]} 16. Bd2 {[%emt 0:02:42]} h6 {[%emt 0:02:54]} 17. Rad1 {[%emt 0:02:21]} Qb6 {[%emt 0:01:04]} 18. c4 {[%emt 0:09:35]} Ne7 {[%emt 0:00:47]} 19. b3 {[%emt 0:00:12]} Nf5 {[%emt 0:00:16]} 20. Rfe1 {[%emt 0:04:59]} Qc7 {[%emt 0:03:57]} 21. g3 {[%emt 0:01:26]} Qe7 {[%emt 0:09:51]} 22. Bf4 {[%emt 0:01:54]} Bc3 {[%emt 0:02:22]} 23. Bd2 {[%emt 0:01:50]} Bf6 {[%emt 0:00:59]} 24. Bf4 {[%emt 0:02:10]} Ra6 {[%emt 0:05:01]} 25. Qc2 {[%emt 0:02:31]} Qa3 {[%emt 0:01:35]} 26. Re2 {[%emt 0:01:06]} Rc8 {[%emt 0:00:17]} 27. Red2 {[%emt 0:02:10]} b5 {[%emt 0:01:04]} 28. g4 {[%emt 0:06:18]} Ne7 {[%emt 0:05:23]} 29. Rd8+ {[%emt 0:00:24]} 1-0

[Event "White Rook U14 Final 2019"]
[Site "Sochi"]
[Date "2019.06.06"]
[Round "1.36"]
[White "Khegai, Darya"]
[Black "Korovina, Yana"]
[Result "0-1"]
[ECO "C27"]
[WhiteElo "1402"]
[BlackElo "1672"]
[Annotator "NA RC"]
[PlyCount "108"]
[EventDate "2019.06.02"]
[EventCountry "RUS"]
[SourceTitle "playchess.com"]
[Source "ChessBase"]
[SourceQuality "1"]
[TimeControl "5400+30"]

1. e4 {[%emt 0:00:00]} e5 {[%emt 0:00:10]} 2. Nc3 {[%emt 0:00:40]} Nf6 {[%emt 0:00:11]} 3. Bc4 {[%emt 0:00:34]} Nc6 {[%emt 0:00:23]} 4. d3 {[%emt 0:00:17]} Bc5 {[%emt 0:00:22]} 5. f4 {[%emt 0:01:35]} d6 {[%emt 0:03:40]} 6. f5 {[%emt 0:03:00]} Na5 {[%emt 0:01:55]} 7. Bb3 {[%emt 0:02:01]} Nxb3 {[%emt 0:00:29]} 8. axb3 {[%emt 0:00:15]} d5 {[%emt 0:03:19]} 9. Qe2 {[%emt 0:04:21]} O-O {[%emt 0:05:15]} 10. Nf3 {[%emt 0:09:15]} Qd6 {[%emt 0:08:06]} 11. Bd2 {[%emt 0:06:52]} Bd7 {[%emt 0:05:23]} 12. h3 {[%emt 0:05:20]} Bb4 {[%emt 0:05:20]} 13. O-O {[%emt 0:05:40]} Bc5+ {[%emt 0:04:04]} 14. Kh1 {[%emt 0:00:16]} Nh5 {[%emt 0:04:30]} 15. Kh2 {[%emt 0:00:42]} Nf4 {[%emt 0:13:08]} 16. Bxf4 {[%emt 0:01:34]} exf4 {[%emt 0:00:31]} 17. Nxd5 {[%emt 0:01:17]} Bxf5 {[%emt 0:01:46]} 18. b4 {[%emt 0:01:42]} Be3 {[%emt 0:03:03]} 19. Kh1 {[%emt 0:10:12]} Be6 {[%emt 0:01:34]} 20. Nxe3 {[%emt 0:00:39]} fxe3 {[%emt 0:00:12]} 21. c3 {[%emt 0:00:46]} Rad8 {[%emt 0:05:10]} 22. d4 {[%emt 0:01:52]} Qg3 {[%emt 0:00:17]} 23. d5 {[%emt 0:07:25]} Bc8 {[%emt 0:01:24]} 24. Nd4 {[%emt 0:00:13]} Qg5 {[%emt 0:03:59]} 25. Rxa7 {[%emt 0:00:48]} Rd6 {[%emt 0:01:59]} 26. Nf5 {[%emt 0:01:28]} Rg6 {[%emt 0:03:20]} 27. Nxe3 {[%emt 0:00:49]} h6 {[%emt 0:04:12]} 28. Ra5 {[%emt 0:01:36]} b6 {[%emt 0:01:16]} 29. Ra7 {[%emt 0:00:23]} Qh4 {[%emt 0:01:52]} 30. Nf5 {[%emt 0:00:55]} Bxf5 {[%emt 0:01:31]} 31. Rxf5 {[%emt 0:00:19]} Re8 {[%emt 0:00:57]} 32. e5 {[%emt 0:00:28]} Rg5 {[%emt 0:01:02]} 33. Rxg5 {[%emt 0:00:25]} Qxg5 {[%emt 0:00:05]} 34. d6 {[%emt 0:01:55]} Rxe5 {[%emt 0:01:49]} 35. Ra8+ {[%emt 0:01:14]} Kh7 {[%emt 0:00:27]} 36. Qd3+ {[%emt 0:00:06]} f5 {[%emt 0:01:06]} 37. Qd1 {[%emt 0:00:36]} Qg3 {[%emt 0:00:32]} 38. Ra1 {[%emt 0:01:08]} cxd6 {[%emt 0:00:12]} 39. Qc2 {[%emt 0:01:06]} Re1+ {[%emt 0:00:55]} 40. Rxe1 {[%emt 0:00:04]} Qxe1+ {[%emt 0:00:14]} 41. Kh2 {[%emt 0:00:04]} Qe5+ {[%emt 0:00:17]} 42. g3 {[%emt 0:00:04]} b5 {[%emt 0:00:17]} 43. Kg2 {[%emt 0:00:46]} Kg6 {[%emt 0:03:53]} 44. g4 {[%emt 0:01:45]} Kf6 {[%emt 0:00:27]} 45. gxf5 {[%emt 0:00:57]} Qxf5 {[%emt 0:00:11]} 46. Qd1 {[%emt 0:00:09]} Qe4+ {[%emt 0:00:31]} 47. Kg3 {[%emt 0:01:23]} Qe5+ {[%emt 0:00:56]} 48. Kf2 {[%emt 0:01:20]} Qh2+ {[%emt 0:00:19]} 49. Ke3 {[%emt 0:01:00]} Qxh3+ {[%emt 0:00:04]} 50. Kd2 {[%emt 0:00:05]} Qh2+ {[%emt 0:00:17]} 51. Kc1 {[%emt 0:00:09]} Qf4+ {[%emt 0:00:15]} 52. Kb1 {[%emt 0:00:23]} g5 {[%emt 0:00:19]} 53. Qh1 {[%emt 0:00:09]} Kg6 {[%emt 0:00:26]} 54. Qd5 {[%emt 0:00:52]} Qf5+ {[%emt 0:00:10]} 0-1

[Event "White Rook U14 Final 2019"]
[Site "Sochi"]
[Date "2019.06.06"]
[Round "2.1"]
[White "Kuzmin, Roman"]
[Black "Ponomarev, Matvey"]
[Result "1-0"]
[ECO "B01"]
[WhiteElo "2119"]
[BlackElo "1292"]
[Annotator "RC"]
[PlyCount "59"]
[EventDate "2019.06.02"]
[EventCountry "RUS"]
[SourceTitle "playchess.com"]
[Source "ChessBase"]
[SourceQuality "1"]
[TimeControl "5400+30"]

1. e4 {[%emt 0:00:00]} d5 {[%emt 0:00:00]} 2. exd5 {[%emt 0:00:00]} Qxd5 {[%emt 0:00:00]} 3. Nc3 {[%emt 0:00:00]} Qd8 {[%emt 0:00:00]} 4. d4 {[%emt 0:00:00]} Nf6 {[%emt 0:00:00]} 5. Nf3 {[%emt 0:00:00]} Bg4 {[%emt 0:00:00]} 6. Be3 {[%emt 0:00:50]} e6 {[%emt 0:00:00]} 7. h3 {[%emt 0:00:04]} Bxf3 {[%emt 0:00:27]} 8. Qxf3 {[%emt 0:00:00]} c6 {[%emt 0:00:06]} 9. a3 {[%emt 0:00:11]} Nbd7 {[%emt 0:00:14]} 10. Bd3 {[%emt 0:04:30]} Be7 {[%emt 0:01:50]} 11. Ne2 {[%emt 0:02:37]} e5 {[%emt 0:07:29]} 12. O-O-O {[%emt 0:16:51]} Qc8 {[%emt 0:21:09]} 13. g4 {[%emt 0:05:04]} exd4 {[%emt 0:12:29]} 14. Bxd4 {[%emt 0:00:49]} c5 {[%emt 0:02:07]} 15. Bc3 {[%emt 0:00:00]} h6 {[%emt 0:04:35]} 16. Bf5 {[%emt 0:00:20]} Qc7 {[%emt 0:08:48]} 17. Bxd7+ {[%emt 0:05:22]} Nxd7 {[%emt 0:02:11]} 18. Bxg7 {[%emt 0:02:19]} Bg5+ {[%emt 0:00:24]} 19. Kb1 {[%emt 0:00:13]} Rg8 {[%emt 0:03:01]} 20. Qe4+ {[%emt 0:00:12]} Kd8 {[%emt 0:03:40]} 21. Be5 {[%emt 0:00:17]} Qc8 {[%emt 0:01:06]} 22. f4 {[%emt 0:01:27]} Be7 {[%emt 0:02:29]} 23. Qh7 {[%emt 0:00:53]} Re8 {[%emt 0:03:10]} 24. Qxf7 {[%emt 0:00:57]} Qc6 {[%emt 0:02:43]} 25. Nc3 {[%emt 0:00:22]} Rf8 {[%emt 0:01:30]} 26. Qh7 {[%emt 0:00:45]} Kc8 {[%emt 0:07:53]} 27. Qxe7 {[%emt 0:00:17]} b5 {[%emt 0:00:47]} 28. Rxd7 {[%emt 0:00:09]} Qxh1+ {[%emt 0:01:54]} 29. Ka2 {[%emt 0:00:19]} c4 {[%emt 0:02:26]} 30. Rd8+ {[%emt 0:00:04]} 1-0